Workbook

Sheet Sheet1 (hidden)
A2: ทั่วไป | B2: วิชาการ | C2: อำนวยการท้องถิ่น | D2: บริหารงานท้องถิ่น | AM2: ทั่วไป | AN2: วิชาการ | AO2: อำนวยการท้องถิ่น | AP2: นักบริหารงานท้องถิ่น
A3: เจ้าพนักงานธุรการ | B3: นักจัดการงานทั่วไป | C3: นักบริหารงานทั่วไป | D3: นักบริหารท้องถิ่น | AM3: เจ้าพนักงานธุรการ | AN3: นักจัดการงานทั่วไป | AO3: นักบริหารงานทั่วไป | AP3: นักบริหารท้องถิ่น
A4: เจ้าพนักงานทะเบียน | B4: นักทรัพยากรบุคคล | C4: นักบริหารงานคลัง | AM4: เจ้าพนักงานทะเบียน | AN4: นักทรัพยากรบุคคล | AO4: นักบริหารงานคลัง
A5: เจ้าพนักงานเวชสถิติ | B5: นักวิเคราะห์นโยบายและแผน | C5: นักบริหารงานช่าง | AM5: เจ้าพนักงานเวชสถิติ | AN5: นักวิเคราะห์นโยบายและแผน | AO5: นักบริหารงานช่าง
A6: เจ้าพนักงานการเงินและบัญชี | B6: นักจัดการงานทะเบียนและบัตร | C6: นักบริหารงานสาธารณสุขและสิ่งแวดล้อม | AM6: เจ้าพนักงานการเงินและบัญชี | AN6: นักจัดการงานทะเบียนและบัตร | AO6: นักบริหารงานสาธารณสุขและสิ่งแวดล้อม
A7: เจ้าพนักงานการคลัง | B7: นิติกร | C7: นักบริหารงานสวัสดิการสังคม | AM7: เจ้าพนักงานการคลัง | AN7: นิติกร | AO7: นักบริหารงานสวัสดิการสังคม
A8: เจ้าพนักงานพัสดุ | B8: นักวิชาการคอมพิวเตอร์ | C8: นักบริหารงานประปา | AM8: เจ้าพนักงานพัสดุ | AN8: นักวิชาการคอมพิวเตอร์ | AO8: นักบริหารงานประปา
A9: เจ้าพนักงานจัดเก็บรายได้ | B9: นักวิชาการเงินและบัญชี | C9: นักบริหารงานการศึกษา | AM9: เจ้าพนักงานจัดเก็บรายได้ | AN9: นักวิชาการเงินและบัญชี | AO9: นักบริหารงานการศึกษา
A10: เจ้าพนักงานประชาสัมพันธ์ | B10: นักวิชาการคลัง | C10: นักบริหารงานช่างสุขาภิบาล | AM10: เจ้าพนักงานประชาสัมพันธ์ | AN10: นักวิชาการคลัง | AO10: นักบริหารงานช่างสุขาภิบาล
A11: เจ้าพนักงานส่งเสริมการท่องเที่ยว | B11: นักวิชาการจัดเก็บรายได้ | C11: นักบริหารงานการเกษตร | AM11: เจ้าพนักงานส่งเสริมการท่องเที่ยว | AN11: นักวิชาการจัดเก็บรายได้ | AO11: นักบริหารงานการเกษตร
A12: เจ้าพนักงานการเกษตร | B12: นักวิชาการพัสดุ | AM12: เจ้าพนักงานการเกษตร | AN12: นักวิชาการพัสดุ
A13: เจ้าพนักงานประมง | B13: นักวิชาการตรวจสอบภายใน | AM13: เจ้าพนักงานประมง | AN13: นักวิชาการตรวจสอบภายใน
A14: สัตวบาล | B14: นักวิชาการพาณิชย์ | AM14: สัตวบาล | AN14: นักวิชาการพาณิชย์
A15: เจ้าพนักงานสวนสาธารณะ | B15: นักประชาสัมพันธ์ | AM15: เจ้าพนักงานสวนสาธารณะ | AN15: นักประชาสัมพันธ์
A16: เจ้าพนักงานวิทยาศาสตร์ | B16: นักพัฒนาการท่องเที่ยว | AM16: เจ้าพนักงานวิทยาศาสตร์ | AN16: นักพัฒนาการท่องเที่ยว
A17: เจ้าพนักงานสาธารณสุข | B17: นักวิเทศสัมพันธ์ | AM17: เจ้าพนักงานสาธารณสุข | AN17: นักวิเทศสัมพันธ์
A18: พยาบาลเทคนิค | B18: นักวิชาการเกษตร | AM18: พยาบาลเทคนิค | AN18: นักวิชาการเกษตร
A19: เจ้าพนักงานเวชกรรมฟื้นฟู | B19: นักวิชาการประมง | AM19: เจ้าพนักงานเวชกรรมฟื้นฟู | AN19: นักวิชาการประมง
A20: เจ้าพนักงานสุขาภิบาล | B20: นักวิชาการสวนสาธารณะ | AM20: เจ้าพนักงานสุขาภิบาล | AN20: นักวิชาการสวนสาธารณะ
A21: โภชนากร | B21: นักวิทยาศาสตร์ | AM21: โภชนากร | AN21: นักวิทยาศาสตร์
A22: เจ้าพนักงานรังสีการแพทย์ | B22: นักวิชาการสาธารณสุข | AM22: เจ้าพนักงานรังสีการแพทย์ | AN22: นักวิชาการสาธารณสุข
A23: เจ้าพนักงานวิทยาศาสตร์การแพทย์ | B23: พยาบาลวิชาชีพ | AM23: เจ้าพนักงานวิทยาศาสตร์การแพทย์ | AN23: พยาบาลวิชาชีพ
A24: เจ้าพนักงานเภสัชกรรม | B24: นักกายภาพบำบัด | AM24: เจ้าพนักงานเภสัชกรรม | AN24: นักกายภาพบำบัด
A25: เจ้าพนักงานทันตสาธารณสุข | B25: นักอาชีวบำบัด | AM25: เจ้าพนักงานทันตสาธารณสุข | AN25: นักอาชีวบำบัด
A26: สัตวแพทย์ | B26: แพทย์แผนไทย | AM26: สัตวแพทย์ | AN26: แพทย์แผนไทย
A27: นายช่างโยธา | B27: นักวิชาการสุขาภิบาล | AM27: นายช่างโยธา | AN27: นักวิชาการสุขาภิบาล
A28: นายช่างเขียนแบบ | B28: นักวิชาการสิ่งแวดล้อม | AM28: นายช่างเขียนแบบ | AN28: นักวิชาการสิ่งแวดล้อม
A29: นายช่างสำรวจ | B29: นักโภชนาการ | AM29: นายช่างสำรวจ | AN29: นักโภชนาการ
A30: นายช่างผังเมือง | B30: นักเทคนิคการแพทย์ | AM30: นายช่างผังเมือง | AN30: นักเทคนิคการแพทย์
A31: นายช่างเครื่องกล | B31: นักวิทยาศาสตร์การแพทย์ | AM31: นายช่างเครื่องกล | AN31: นักวิทยาศาสตร์การแพทย์
A32: นายช่างไฟฟ้า | B32: นักรังสีการแพทย์ | AM32: นายช่างไฟฟ้า | AN32: นักรังสีการแพทย์
A33: เจ้าพนักงานประปา | B33: เภสัชกร | AM33: เจ้าพนักงานประปา | AN33: เภสัชกร
A34: นายช่างศิลป์ | B34: ทันตแพทย์ | AM34: นายช่างศิลป์ | AN34: ทันตแพทย์
A35: นายช่างภาพ | B35: นายสัตแพทย์ | AM35: นายช่างภาพ | AN35: นายสัตแพทย์
A36: เจ้าพนักงานพัฒนาชุมชน | B36: นายแพทย์ | AM36: เจ้าพนักงานพัฒนาชุมชน | AN36: นายแพทย์
A37: เจ้าพนักงานห้องสมุด | B37: วิศวกรโยธา | AM37: เจ้าพนักงานห้องสมุด | AN37: วิศวกรโยธา
A38: เจ้าพนักงานศูนย์เยาวชน | B38: สถาปนิก | AM38: เจ้าพนักงานศูนย์เยาวชน | AN38: สถาปนิก
A39: เจ้าพนักงานเทศกิจ | B39: นักผังเมือง | AM39: เจ้าพนักงานเทศกิจ | AN39: นักผังเมือง
A40: เจ้าพนักงานป้องกันและบรรเทาสาธารณภัย | B40: วิศวกรเครื่องกล | AM40: เจ้าพนักงานป้องกันและบรรเทาสาธารณภัย | AN40: วิศวกรเครื่องกล
B41: วิศวกรไฟฟ้า | AN41: วิศวกรไฟฟ้า
B42: วิศวกรสุขาภิบาล | AN42: วิศวกรสุขาภิบาล
B43: นักจัดการงานช่าง | AN43: นักจัดการงานช่าง
B44: นักพัฒนาชุมชน | AN44: นักพัฒนาชุมชน
B45: นักสังคมสงเคราะห์ | AN45: นักสังคมสงเคราะห์
B46: นักวิชาการศึกษา | AN46: นักวิชาการศึกษา
B47: บรรณารักษ์ | AN47: บรรณารักษ์
B48: นักวิชาการวัฒนธรรม | AN48: นักวิชาการวัฒนธรรม
B49: นักสันทนาการ | AN49: นักสันทนาการ
B50: นักพัฒนาการกีฬา | AN50: นักพัฒนาการกีฬา
B51: ภัณฑารักษ์ | AN51: ภัณฑารักษ์
B52: นักจัดการงานเทศกิจ | AN52: นักจัดการงานเทศกิจ
B53: นักป้องกันและบรรเทาสาธารณภัย | AN53: นักป้องกันและบรรเทาสาธารณภัย

Sheet Data
F1: เจ้าพนักงานธุรการ
F2: เจ้าพนักงานทะเบียน
F3: เจ้าพนักงานเวชสถิติ
F4: เจ้าพนักงานการเงินและบัญชี
F5: เจ้าพนักงานการคลัง
F6: เจ้าพนักงานพัสดุ
F7: เจ้าพนักงานจัดเก็บรายได้
F8: เจ้าพนักงานประชาสัมพันธ์
F9: เจ้าพนักงานส่งเสริมการท่องเที่ยว
F10: เจ้าพนักงานการเกษตร
F11: เจ้าพนักงานประมง
F12: สัตวบาล
F13: เจ้าพนักงานสวนสาธารณะ
F14: เจ้าพนักงานวิทยาศาสตร์
F15: เจ้าพนักงานสาธารณสุข
F16: พยาบาลเทคนิค
F17: เจ้าพนักงานเวชกรรมฟื้นฟู
F18: เจ้าพนักงานสุขาภิบาล
F19: โภชนากร
F20: เจ้าพนักงานรังสีการแพทย์
F21: เจ้าพนักงานวิทยาศาสตร์การแพทย์
F22: เจ้าพนักงานเภสัชกรรม
F23: เจ้าพนักงานทันตสาธารณสุข
F24: สัตวแพทย์
F25: นายช่างโยธา
F26: นายช่างเขียนแบบ
F27: นายช่างสำรวจ
F28: นายช่างผังเมือง
F29: นายช่างเครื่องกล
F30: นายช่างไฟฟ้า
F31: เจ้าพนักงานประปา
F32: นายช่างศิลป์
F33: นายช่างภาพ
F34: เจ้าพนักงานพัฒนาชุมชน
F35: เจ้าพนักงานห้องสมุด
F36: เจ้าพนักงานศูนย์เยาวชน
F37: เจ้าพนักงานเทศกิจ
F38: เจ้าพนักงานป้องกันและบรรเทาสาธารณภัย
F39: นักจัดการงานทั่วไป
F40: นักทรัพยากรบุคคล
F41: นักวิเคราะห์นโยบายและแผน
F42: นักจัดการงานทะเบียนและบัตร
F43: นิติกร
F44: นักวิชาการคอมพิวเตอร์
F45: นักวิชาการเงินและบัญชี
F46: นักวิชาการคลัง
F47: นักวิชาการจัดเก็บรายได้
F48: นักวิชาการพัสดุ
F49: นักวิชาการตรวจสอบภายใน
F50: นักวิชาการพาณิชย์
F51: นักประชาสัมพันธ์
F52: นักพัฒนาการท่องเที่ยว
F53: นักวิเทศสัมพันธ์
F54: นักวิชาการเกษตร
F55: นักวิชาการประมง
F56: นักวิชาการสวนสาธารณะ
F57: นักวิทยาศาสตร์
F58: นักวิชาการสาธารณสุข
F59: พยาบาลวิชาชีพ
F60: นักกายภาพบำบัด
F61: นักอาชีวบำบัด
F62: แพทย์แผนไทย
F63: นักวิชาการสุขาภิบาล
F64: นักวิชาการสิ่งแวดล้อม
F65: นักโภชนาการ
F66: นักเทคนิคการแพทย์
F67: นักวิทยาศาสตร์การแพทย์
F68: นักรังสีการแพทย์
F69: เภสัชกร
F70: ทันตแพทย์
F71: นายสัตแพทย์
F72: นายแพทย์
F73: วิศวกรโยธา
F74: สถาปนิก
F75: นักผังเมือง
F76: วิศวกรเครื่องกล
F77: วิศวกรไฟฟ้า
F78: วิศวกรสุขาภิบาล
F79: นักจัดการงานช่าง
F80: นักพัฒนาชุมชน
F81: นักสังคมสงเคราะห์
F82: นักวิชาการศึกษา
F83: บรรณารักษ์
F84: นักวิชาการวัฒนธรรม
F85: นักสันทนาการ
F86: นักพัฒนาการกีฬา
F87: ภัณฑารักษ์
F88: นักจัดการงานเทศกิจ
F89: นักป้องกันและบรรเทาสาธารณภัย
F90: นักบริหารงานทั่วไป
F91: นักบริหารงานคลัง
F92: นักบริหารงานช่าง
F93: นักบริหารงานสาธารณสุขและสิ่งแวดล้อม
F94: นักบริหารงานสวัสดิการสังคม
F95: นักบริหารงานประปา
F96: นักบริหารงานการศึกษา
F97: นักบริหารงานช่างสุขาภิบาล
F98: นักบริหารงานการเกษตร
F99: นักบริหารท้องถิ่น
F100: ปฎิบัติงาน
F101: ชำนาญงาน
F102: อาวุโส
F103: ปฎิบัติการ
F104: ชำนาญการ
F105: ชำนาญการพิเศษ
F106: เชี่ยวชาญ
F107: ต้น
F108: กลาง
F109: สูง
F110: ทั่วไป
F111: วิชาการ
F112: อำนวยการท้องถิ่น
F113: บริหารงานท้องถิ่น
F114: แบบประเมินผลการปฏิบัติงานของพนักงานส่วนท้องถิ่น
B115: สำหรับตำแหน่งประเภท -> | F115: วิชาการ และทั่วไป
B116: ผู้รับการประเมิน | C116: นายชุติพล นิลพันธ์ | E116: ประเภทตำแหน่ง | F116: ทั่วไป | AB116: เลขบัตรประชาชน 13 หลัก | AC116: =C117 -> 1312111098765 | AD116: =LEN(AC116) -> 13
B117: หมายเลขบัตรประชาชน | C117: 1312111098765 | D117: =IF(RIGHT(AC116,1)=AD126,"P","O") -> O | E117: ตำแหน่ง | F117: นายช่างเขียนแบบ | AD117: แยกออกมาทีละตัว
B118: เลขที่ตำแหน่ง | C118: 109876543212 | E118: ระดับ | F118: ปฎิบัติงาน | AD118: 1 | AE118: 2 | AF118: 3 | AG118: 4 | AH118: 5 | AI118: 6 | AJ118: 7 | AK118: 8 | AL118: 9 | AM118: 10 | AN118: 11 | AO118: 12
B119: ประเมินครั้งที่ | C119: 1 | E119: สังกัด | F119: กองช่าง | AB119: เลขบัตรประชาชน 12 หลักแรก | AC119: =LEFT(AC116,12)*1 -> 131211109876 | AD119: =MID($AC$119,AD118,1)*1 -> 1 | AE119: =MID($AC$119,AE118,1)*1 -> 3 | AF119: 1 | AG119: 2 | AH119: 1 | AI119: 1 | AJ119: 1 | AK119: 0 | AL119: 9 | AM119: 8 | AN119: 7 | AO119: 6
B120: ปีงบประมาณ | C120: 2563 | E120: ส่วน/ฝ่าย | F120: แบบแผนและก่อสร้าง
E121: งาน | F121: วิศวกรรมและสถาปัตยกรรม | AC121: คูณด้วย | AD121: 13 | AE121: 12 | AF121: 11 | AG121: 10 | AH121: 9 | AI121: 8 | AJ121: 7 | AK121: 6 | AL121: 5 | AM121: 4 | AN121: 3 | AO121: 2
B123: ผู้ประเมิน | C123: นายวิเชียร อรรถพร | E123: ประเภทตำแหน่ง | F123: วิชาการ | AC123: รวมผลคูณ | AD123: =SUMPRODUCT(AD119:AO119,AD121:AO121) -> 214
B124: หมายเลขบัตรประชาชน | C124: 1453698715463 | D124: =IF(RIGHT(AC131,1)=AD141,"P","O") -> O | E124: ตำแหน่ง | F124: ผู้อำนวยการกองช่าง | AC124: หาเศษเหลือจากการหารด้วย 11 | AD124: =MOD(AD123,11) -> 5
E125: ระดับ | F125: อาวุโส | AC125: เอา 11 ไปลบด้วยผลลัพธ์ | AD125: =11-AD124 -> 6
AC126: Digit สุดท้าย = Check Digit | AD126: =RIGHT(AD125,1) -> 6
B127: ประธานคณะกรรมการกลั่นกรองการประเมินผลการปฏิบัติงาน ฯ | C127: นางสุดาทิพย์ มโนวราวุฒิ | E127: ตำแหน่ง | F127: รองปลัดเทศบาล ปฏิบัติราชการแทนปลัดเทศบาล | AC127: กรอกเลขบัตรถูกหรือไม่ | AD127: =RIGHT(AC116,1)=AD126 -> FALSE
B128: =IF(C130="องค์การบริหารส่วนตำบล","นายกองค์การบริหารส่วนตำบล",IF(C130="องค์การบริหารส่วนจังหวัด","นายกองค์การบริหารส่วนจังหวัด","นายกเทศมนตรี")) -> นายกเทศมนตรี | C128: นายจารึก เพ็ชรคง | E128: ปลัดเทศบาล ปฏิบัติหน้าที่นายกเทศมนตรี
B130: หน่วยงาน | C130: เทศบาลตำบล | F130: วัดประดู่ | R130: ระดับทั่วไป | S130: ระดับวิชาการ | T130: ระดับอำนวยการท้องถิ่น | U130: ระดับบริหารงานท้องถิ่น
R131: ปฎิบัติงาน | S131: ปฎิบัติการ | T131: ต้น | U131: ต้น | AB131: เลขบัตรประชาชน 13 หลัก | AC131: =C124 -> 1453698715463 | AD131: =LEN(AC131) -> 13
R132: ชำนาญงาน | S132: ชำนาญการ | T132: กลาง | U132: กลาง | AD132: แยกออกมาทีละตัว
R133: อาวุโส | S133: ชำนาญการพิเศษ | T133: สูง | U133: สูง | AD133: 1 | AE133: 2 | AF133: 3 | AG133: 4 | AH133: 5 | AI133: 6 | AJ133: 7 | AK133: 8 | AL133: 9 | AM133: 10 | AN133: 11 | AO133: 12
S134: เชี่ยวชาญ | AB134: เลขบัตรประชาชน 12 หลักแรก | AC134: =LEFT(AC131,12)*1 -> 145369871546 | AD134: =MID($AC$119,AD133,1)*1 -> 1 | AE134: =MID($AC$119,AE133,1)*1 -> 3 | AF134: =MID($AC$119,AF133,1)*1 -> 1 | AG134: =MID($AC$119,AG133,1)*1 -> 2 | AH134: =MID($AC$119,AH133,1)*1 -> 1 | AI134: =MID($AC$119,AI133,1)*1 -> 1 | AJ134: =MID($AC$119,AJ133,1)*1 -> 1 | AK134: =MID($AC$119,AK133,1)*1 -> 0 | AL134: =MID($AC$119,AL133,1)*1 -> 9 | AM134: =MID($AC$119,AM133,1)*1 -> 8 | AN134: =MID($AC$119,AN133,1)*1 -> 7 | AO134: =MID($AC$119,AO133,1)*1 -> 6
R135: ประเภท | S135: ระดับ
R136: ทั่วไป | S136: ระดับทั่วไป | AC136: คูณด้วย | AD136: 13 | AE136: 12 | AF136: 11 | AG136: 10 | AH136: 9 | AI136: 8 | AJ136: 7 | AK136: 6 | AL136: 5 | AM136: 4 | AN136: 3 | AO136: 2
R137: วิชาการ | S137: ระดับวิชาการ
R138: อำนวยการท้องถิ่น | S138: ระดับอำนวยการท้องถิ่น | AC138: รวมผลคูณ | AD138: =SUMPRODUCT(AD134:AO134,AD136:AO136) -> 214
R139: บริหารงานท้องถิ่น | S139: ระดับบริหารงานท้องถิ่น | AC139: หาเศษเหลือจากการหารด้วย 11 | AD139: =MOD(AD138,11) -> 5
AC140: เอา 11 ไปลบด้วยผลลัพธ์ | AD140: =11-AD139 -> 6
R141: หน่วยงาน | S141: ผู้บริหาร | AC141: Digit สุดท้าย = Check Digit | AD141: =RIGHT(AD140,1) -> 6
R142: เทศบาลเมือง | S142: นายกเทศมนตรีเมือง | AC142: กรอกเลขบัตรถูกหรือไม่ | AD142: =RIGHT(AC131,1)=AD141 -> FALSE
R143: เทศบาลตำบล | S143: นายกเทศมนตรีตำบล
R144: เทศบาลนคร | S144: นายกเทศมนตรีนคร
R145: องค์การบริหารส่วนจังหวัด | S145: นายกองค์การบริหารส่วนจังหวัด
R146: องค์การบริหารส่วนตำบล | S146: นายกองค์การบริหารส่วนตำบล

Sheet P1 (hidden)
C3: แบบประเมินผลการปฏิบัติงานของข้าราชการหรือพนักงานส่วนท้องถิ่น
C4: ="(สำหรับตำแหน่งประเภท"&Data!F115&")" -> (สำหรับตำแหน่งประเภทวิชาการ และทั่วไป)
C6: รอบการประเมิน | N6: =IF(Data!C119=1,BV7,BV6) -> þ | T6: ="ครั้งที่ 1 1 ตุลาคม "&Data!C120-1&" ถึง 31 มีนาคม "&Data!C120 -> ครั้งที่ 1 1 ตุลาคม 2562 ถึง 31 มีนาคม 2563 | BV6: ¨
N7: =IF(Data!C119=2,BV7,BV6) -> ¨ | T7: ="ครั้งที่ 2 1 เมษายน "&Data!C120&" ถึง 30 กันยายน "&Data!C120 -> ครั้งที่ 2 1 เมษายน 2563 ถึง 30 กันยายน 2563 | BV7: þ
C9: ผู้รับการประเมิน
C10: เลขประจำตัวประชาชน | N10: =Data!C117 -> 1312111098765 | AB10: ชื่อ - นามสกุล | AI10: =Data!C116 -> นายชุติพล นิลพันธ์ | AY10: ตำแหน่ง | BF10: =Data!F117 -> นายช่างเขียนแบบ
D11: ตำแหน่งประเภท | L11: =Data!F116 -> ทั่วไป | AB11: ระดับ | AI11: =Data!F118 -> ปฎิบัติงาน | AY11: เลขที่ตำแหน่ง | BF11: =Data!C118 -> 109876543212
D12: งาน | L12: =Data!F121 -> วิศวกรรมและสถาปัตยกรรม | AB12: ส่วน/ฝ่าย | AI12: =Data!F120 -> แบบแผนและก่อสร้าง | AY12: สำนัก/กอง | BF12: =Data!F119 -> กองช่าง
C13: ผู้ประเมิน
C14: เลขประจำตัวประชาชน | N14: =Data!C124 -> 1453698715463 | AB14: ชื่อ - นามสกุล | AI14: =Data!C123 -> นายวิเชียร อรรถพร | AY14: ตำแหน่ง | BF14: =Data!F124 -> ผู้อำนวยการกองช่าง
D15: ตำแหน่งประเภท | L15: =Data!F123 -> วิชาการ | AB15: ระดับ | AI15: =Data!F125 -> อาวุโส | AY15: สำนัก/กอง | BF15: =Data!F119 -> กองช่าง

Sheet P2 (hidden)
D3: ="ส่วนที่ 1 การประเมินผลสัมฤทธิ์ของงาน (ร้อยละ "&IF(Data!F115="ข้าราชการบรรจุใหม่ หรืออยู่ระหว่างทดลองปฏิบัติราชการ",50,70)&")" -> ส่วนที่ 1 การประเมินผลสัมฤทธิ์ของงาน (ร้อยละ 70)
E5: 1.1 ก่อนเริ่มรอบการประเมิน
C7: ลำดับที่ | H7: ผลสัมฤทธิ์ของงาน | AA7: ตัวชี้วัด | AT7: น้ำหนัก (ร้อยละ) | AZ7: ระดับคะแนนและค่าเป้าหมาย ( D )
H9: ( A ) | AA9: ( B ) | AT9: ( C ) | AZ9: 1 | BD9: 2 | BH9: 3 | BL9: 4 | BP9: 5
C10: 1 | H10: เขียนแบบ โครงการก่อสร้าง | AA10: ร้อยละของโครงการ จำนวน 5 โครงการ ใช้เป็นแบบก่อสร้าง ถูกต้อง มีรายละเอียดครบถ้วน | AT10: 20 | AZ10: 70 | BD10: 75 | BH10: 80 | BL10: 85 | BP10: 90
C11: 2 | H11: ควบคุมงานก่อสร้าง | AA11: ร้อยละของโครงการ จำนวน 5 โครงการ ก่อสร้างถูกต้องตามแบบและสัญญาจ้าง | AT11: 40 | AZ11: 70 | BD11: 75 | BH11: 80 | BL11: 85 | BP11: 90
C12: 3 | H12: คำนวณราคากลางอิเล็กทรอนิกส์ | AA12: ร้อยละของโครงการ จำนวน 2 โครงการ ดำเนินการถูกต้องตามหลักเกณฑ์ราคากลาง | AT12: 10 | AZ12: 75 | BD12: 80 | BH12: 85 | BL12: 90 | BP12: 95
H15: รวม | AT15: =IF(Data!F115="ข้าราชการบรรจุใหม่ หรืออยู่ระหว่างทดลองปฏิบัติราชการ",IF(SUM(AT10:AY14)=50,50,"ผิดพลาด"),IF(SUM(AT10:AY14)=70,70,"ผิดพลาด")) -> 70 | AZ15: - | BD15: - | BH15: - | BL15: - | BP15: -
D17: หมายเหตุ | J17: 1. ในกรณีมีข้าราชการหรือพนักงานส่วนท้องถิ่นได้รับการแต่งตั้งให้ดำรงตำแหน่ง หรือระดับสูงขึ้น ให้นำวิสัยทัศน์หรือข้อเสนอในการพัฒนางานมากำหนดเป็นการประเมินผลสัมฤทธิ์ของงานในรอบการประเมินครั้งนั้น และครั้งถัดไปจนกว่าจะได้ผลสำเร็จตามตัวชี้วัดที่เสนอในวิสัยทัศน์หรือข้อเสนอ
J18: 2. กรณีช่อง "ผลสัมฤทธิ์ของงาน" หรือช่อง "ตัวชี้วัด" หากไม่สามารถกรอกรายละเอียดได้พอ อาจทำเป็นหลักฐานแนบท้ายแบบประเมินได้

Sheet P3 (hidden)
E3: 1.2 หลังสิ้นรอบการประเมิน
C5: ลำดับตัวชี้วัด | H5: การประเมินตนเอง | BB5: ผลการประเมิน | BK5: คะแนนที่ได้
H6: ผลการดำเนินงาน | Z6: หลักฐาน/ตัวบ่งชี้ | AS6: ผลการประเมิน | BB6: ของผู้ประเมิน
H7: ที่สำเร็จตามตัวชี้วัด | Z7: ความสำเร็จ | AS7: (ระดับคะแนน) | BB7: (ระดับคะแนน) | BK7: ( I ) = ( C ) x ( H )
H8: ( E ) | Z8: ( F ) | AS8: ( G ) | BB8: ( H ) | BK8: 5
C9: ='P2'!C10:G10 -> 1 | H9: 85 | Z9: เอกสาร/หลักฐาน | AS9: =IF(H9>0,ROUNDDOWN(MATCH(H9,'P2'!AZ$10:BS$10,0)/4+1,0),"") -> 4 | BB9: 4 | BK9: =('P2'!AT10*BB9)/5 -> 16
C10: ='P2'!C11:G11 -> 2 | H10: 90 | Z10: เอกสาร/หลักฐาน | AS10: =IF(H10>0,ROUNDDOWN(MATCH(H10,'P2'!AZ$10:BS$10,0)/4+1,0),"") -> 5 | BB10: 4 | BK10: =('P2'!AT11*BB10)/5 -> 32
C11: ='P2'!C12:G12 -> 3 | H11: 90 | Z11: เอกสาร/หลักฐาน | AS11: =IF(H11>0,ROUNDDOWN(MATCH(H11,'P2'!AZ$10:BS$10,0)/4+1,0),"") -> 5 | BB11: 3 | BK11: =('P2'!AT12*BB11)/5 -> 6
C12: ='P2'!C13:G13 -> 0 | AS12: =IF(H12>0,ROUNDDOWN(MATCH(H12,'P2'!AZ$10:BS$10,0)/4+1,0),"") ->  | BK12: =('P2'!AT13*BB12)/5 -> 0
C13: ='P2'!C14:G14 -> 0 | AS13: =IF(H13>0,ROUNDDOWN(MATCH(H13,'P2'!AZ$10:BS$10,0)/4+1,0),"") ->  | BK13: =('P2'!AT14*BB13)/5 -> 0
C14: ='P2'!C15:G15 -> 0 | AS14: =IF(H14>0,ROUNDDOWN(MATCH(H14,'P2'!AZ$10:BS$10,0)/4+1,0),"") ->  | BK14: =('P2'!AT15*BB14)/5 -> 0
H15: รวม | AS15: - | BB15: - | BK15: =SUM(BK9:BS14) -> 54
D17: หมายเหตุ | J17: หลักฐาน/ตัวบ่งชี้ความสำเร็จ หมายถึง หลักฐาน/เอกสารที่แสดงยืนยันต่อผู้ประเมินว่า ผลสัมฤทธิ์ของงานสำเร็จอยู่ในระดับคะแนนและค่าเป้าหมายใด

Sheet P4 (hidden)
D3: ="ส่วนที่ 2 การประเมินสมรรถนะ (ร้อยละ "&IF(Data!F115="ข้าราชการบรรจุใหม่ หรืออยู่ระหว่างทดลองปฏิบัติราชการ",50,30)&")" -> ส่วนที่ 2 การประเมินสมรรถนะ (ร้อยละ 30)
C5: สมรรถนะ | AA5: ระดับ | AH5: ระดับสมรรถนะที่ค้นพบ | BE5: คะแนน | BK5: คะแนนที่ได้
AA6: ที่คาดหวัง | AH6: เมื่อเทียบกับพจนานุกรมสมรรถนะ | BE6: ที่ได้
V7: น้ำหนัก | AA7: ตามมาตรฐาน | AH7: การประเมินตนเอง | AX7: ผลการประเมิน | BE7: ตามตาราง | BK7: ( H ) = ( B ) x ( G )
V8: (ร้อยละ) | AA8: กำหนด | AH8: หลักฐาน/ตัวบ่งชี้ | AQ8: ผลการประเมิน | AX8: ของผู้ประเมิน | BE8: เปรียบเทียบ | BK8: 5
AA9: ตำแหน่ง | AH9: ความสำเร็จ | AQ9: (ระดับ) | AX9: (ระดับ)
C10: ( A ) | V10: ( B ) | AA10: ( C ) | AH10: ( D ) | AQ10: ( E ) | AX10: ( F ) | BE10: ( G )
C11: สมรรถนะหลัก | BY11: ระดับที่ประเมินได้
C12: 1 | E12: การมุ่งผลสัมฤทธิ์ | V12: 4 | AA12: 3 | AH12: เอกสาร/หลักฐาน | AQ12: 5 | AX12: 4 | BE12: =IF(E12>0,VLOOKUP(AA12,$BX$12:$CD$17,MATCH(AX12,$BX$12:$CD$12,0)),"") -> 5 | BK12: =IF(E12>0,(V12*BE12)/5,"") -> 4 | BY12: 0 | BZ12: 1 | CA12: 2 | CB12: 3 | CC12: 4 | CD12: 5
C13: 2 | E13: การยึดมั่นในความถูกต้องและจริยธรรม | V13: 4 | AA13: 3 | AH13: เอกสาร/หลักฐาน | AQ13: 3 | AX13: 4 | BE13: =IF(E13>0,VLOOKUP(AA13,$BX$12:$CD$17,MATCH(AX13,$BX$12:$CD$12,0)),"") -> 5 | BK13: =IF(E13>0,(V13*BE13)/5,"") -> 4 | BW13: ระดับความคาดหวัง | BX13: 1 | BY13: 0 | BZ13: 4 | CA13: 5 | CB13: 5 | CC13: 5 | CD13: 5
C14: 3 | E14: ความเข้าใจในองค์กรและระบบงาน | V14: 4 | AA14: 3 | AH14: เอกสาร/หลักฐาน | AQ14: 3 | AX14: 4 | BE14: =IF(E14>0,VLOOKUP(AA14,$BX$12:$CD$17,MATCH(AX14,$BX$12:$CD$12,0)),"") -> 5 | BK14: =IF(E14>0,(V14*BE14)/5,"") -> 4 | BX14: 2 | BY14: 0 | BZ14: 3 | CA14: 4 | CB14: 5 | CC14: 5 | CD14: 5
C15: 4 | E15: การบริการเป็นเลิศ | V15: 2 | AA15: 3 | AH15: เอกสาร/หลักฐาน | AQ15: 4 | AX15: 4 | BE15: =IF(E15>0,VLOOKUP(AA15,$BX$12:$CD$17,MATCH(AX15,$BX$12:$CD$12,0)),"") -> 5 | BK15: =IF(E15>0,(V15*BE15)/5,"") -> 2 | BX15: 3 | BY15: 0 | BZ15: 2 | CA15: 3 | CB15: 4 | CC15: 5 | CD15: 5
C16: 5 | E16: การทำงานเป็นทีม | V16: 4 | AA16: 3 | AH16: เอกสาร/หลักฐาน | AQ16: 5 | AX16: 4 | BE16: =IF(E16>0,VLOOKUP(AA16,$BX$12:$CD$17,MATCH(AX16,$BX$12:$CD$12,0)),"") -> 5 | BK16: =IF(E16>0,(V16*BE16)/5,"") -> 4 | BX16: 4 | BY16: 0 | BZ16: 1 | CA16: 2 | CB16: 3 | CC16: 4 | CD16: 5
C17: =IF(Data!F115="บริหารท้องถิ่น และอำนวยการท้องถิ่น","สมรรถนะประจำผู้บริหาร","สมรรถนะประจำสายงาน") -> สมรรถนะประจำสายงาน | AH17: เอกสาร/หลักฐาน | BX17: 5 | BY17: 0 | BZ17: 0 | CA17: 1 | CB17: 2 | CC17: 3 | CD17: 4
C18: 1 | E18: =IF(Data!F115="บริหารท้องถิ่น และอำนวยการท้องถิ่น","การเป็นผู้นำในการเปลี่ยนแปลง","ยึดมั่นในหลักเกณฑ์") -> ยึดมั่นในหลักเกณฑ์ | V18: 4 | AA18: 2 | AH18: เอกสาร/หลักฐาน | AQ18: 3 | AX18: 2 | BE18: =IF(E18>0,VLOOKUP(AA18,$BX$12:$CD$17,MATCH(AX18,$BX$12:$CD$12,0)),"") -> 4 | BK18: =IF(E18>0,(V18*BE18)/5,"") -> 3.2
C19: 2 | E19: =IF(Data!F115="บริหารท้องถิ่น และอำนวยการท้องถิ่น","ความสามารถในการเป็นผู้นำ","การสั่งสมความรู้และความเชี่ยวชาญในสายอาชีพ") -> การสั่งสมความรู้และความเชี่ยวชาญในสายอาชีพ | V19: 4 | AA19: 2 | AH19: เอกสาร/หลักฐาน | AQ19: 2 | AX19: 2 | BE19: =IF(E19>0,VLOOKUP(AA19,$BX$12:$CD$17,MATCH(AX19,$BX$12:$CD$12,0)),"") -> 4 | BK19: =IF(E19>0,(V19*BE19)/5,"") -> 3.2
C20: 3 | E20: =IF(Data!F115="บริหารท้องถิ่น และอำนวยการท้องถิ่น","ความสามารถในการพัฒนาคน","ความละเอียดรอบคอบและความถูกต้องของงาน") -> ความละเอียดรอบคอบและความถูกต้องของงาน | V20: 4 | AA20: 2 | AH20: เอกสาร/หลักฐาน | AQ20: 3 | AX20: 3 | BE20: =IF(E20>0,VLOOKUP(AA20,$BX$12:$CD$17,MATCH(AX20,$BX$12:$CD$12,0)),"") -> 5 | BK20: =IF(E20>0,(V20*BE20)/5,"") -> 4
C21: =IF(Data!F115="บริหารท้องถิ่น และอำนวยการท้องถิ่น",4,"") ->  | E21: =IF(Data!F115="บริหารท้องถิ่น และอำนวยการท้องถิ่น","การคิดเชิงกลยุทธ์","") ->  | BE21: =IF(E21="","",VLOOKUP(AA21,$BX$12:$CD$17,MATCH(AX21,$BX$12:$CD$12,0))) ->  | BK21: =IF(E21="","",(V21*BE21)/5) -> 
C22: =IF(Data!F115="บริหารท้องถิ่น และอำนวยการท้องถิ่น",5,"") ->  | BE22: =IF(E22="","",VLOOKUP(AA22,$BX$12:$CD$17,MATCH(AX22,$BX$12:$CD$12,0))) ->  | BK22: =IF(E22="","",(V22*BE22)/5) -> 
C23: รวม | V23: =IF(Data!F115="ข้าราชการบรรจุใหม่ หรืออยู่ระหว่างทดลองปฏิบัติราชการ",IF(SUM(V12:Z22)=50,50,"ผิดพลาด"),IF(SUM(V12:Z22)=30,30,"ผิดพลาด")) -> 30 | AA23: - | AH23: - | AQ23: - | AX23: - | BE23: - | BK23: =SUM(BK11:BS22) -> 28.4

Sheet P5 (hidden)
D3: ส่วนที่ 3 ข้อตกลงการประเมินผลการปฎิบัติงาน
C5: =" ข้อตกลงการประเมินผลการปฏิบัติงานฉบับนี้จัดทำขึ้น ระหว่าง "&Data!C116&" ตำแหน่ง "&Data!F117&Data!F118&" ซึ่งต่อไปนี้จะเรียกว่า ผู้รับการประเมิน กับ "&Data!C123&" ตำแหน่ง "&Data!F124&" ซึ่งต่อไปนี้จะเรียกว่า ผู้ประเมิน" -> ข้อตกลงการประเมินผลการปฏิบัติงานฉบับนี้จัดทำขึ้น ระหว่าง นายชุติพล นิลพันธ์ ตำแหน่ง นายช่างเขียนแบบปฎิบัติงาน ซึ่งต่อไปนี้จะเรียกว่า ผู้รับการประเมิน กับ นายวิเชียร อรรถพร ตำแหน่ง ผู้อำนวยการกองช่าง ซึ่งต่อไปนี้จะเรียกว่า ผู้ประเมิน
C6: =" ผู้ประเมิน และผู้รับการประเมิน ได้มีข้อตกลงร่วมกันกำหนดการประเมินผลการปฏิบัติงาน ประกอบด้วย ส่วนที่ 1 การประเมินผลสัมฤทธิ์ของงาน และส่วนที่ 2 การประเมินสมรรถนะ เพื่อใช้สำหรับประเมินผลการปฎิบัติงานในรอบการประเมิน ครั้งที่ "&Data!C119&" ประจำปีงบประมาณ พ.ศ. "&Data!C120&" โดยผู้รับการประเมินขอให้ข้อตกลงว่า จะมุ่งมั่นปฏิบัติงานให้เกิดผลงานที่ดีตามเป้าหมาย และเกิดประโยชน์แก่ประชาชนหรือทางราชการตามที่ได้ตกลงไว้ "&"และผู้ประเมินขอให้ข้อตกลงว่า ยินดีให้คำแนะนำ คำปรึกษาในการปฏิบัติงานแก่ผู้รับการประเมิน และจะประเมินผลการปฏิบัติงานด้วยความเป็นธรรม โปร่งใสตามที่ได้ตกลงกันไว้ "&"โดยทั้งสองฝ่ายได้รับทราบข้อตกลงการประเมินผลการปฏิบัติงานร่วมกันแล้ว จึงลงลายมือชื่อไว้เป็นหลักฐาน" -> ผู้ประเมิน และผู้รับการประเมิน ได้มีข้อตกลงร่วมกันกำหนดการประเมินผลการปฏิบัติงาน ประกอบด้วย ส่วนที่ 1 การประเมินผลสัมฤทธิ์ของงาน และส่วนที่ 2 การประเมินสมรรถนะ เพื่อใช้สำหรับประเมินผลการปฎิบัติงานในรอบการประเมิน ครั้งที่ 1 ประจำปีงบประมาณ พ.ศ. 2563 โดยผู้รับการประเมินขอให้ข้อตกลงว่า จะมุ่งมั่นปฏิบัติงานให้เกิดผลงานที่ดีตามเป้าหมาย และเกิดประโยชน์แก่ประชาชนหรือทางราชการตามที่ได้ตกลงไว้ และผู้ประเมินขอให้ข้อตกลงว่า ยินดีให้คำแนะนำ คำปรึกษาในการปฏิบัติงานแก่ผู้รับการประเมิน และจะประเมินผลการปฏิบัติงานด้วยความเป็นธรรม โปร่งใสตามที่ได้ตกลงกันไว้ โดยทั้งสองฝ่ายได้รับทราบข้อตกลงการประเมินผลการปฏิบัติงานร่วมกันแล้ว จึงลงลายมือชื่อไว้เป็นหลักฐาน
J9: ลงชื่อ | K9: ........................................................ | Y9: ผู้รับการประเมิน | AT9: ลงชื่อ | AU9: ........................................................ | BI9: ผู้ประเมิน
K10: ="("&Data!C116&")" -> (นายชุติพล นิลพันธ์) | AU10: ="("&Data!C123&")" -> (นายวิเชียร อรรถพร)
J11: ตำแหน่ง | K11: =Data!F117&Data!F118 -> นายช่างเขียนแบบปฎิบัติงาน | AT11: ตำแหน่ง | AU11: =Data!F124 -> ผู้อำนวยการกองช่าง
J12: วันที่ | K12: ........................................................ | AT12: วันที่ | AU12: ........................................................
D14: ส่วนที่ 4 สรุปผลการประเมิน
E16: 4.1 ผลการประเมินตนเอง
H17: ข้าพเจ้าขอรับรองว่า ได้ประเมินตนเองตามเอกสารหรือหลักฐาน/ตัวบ่งชี้ความสำเร็จที่มีอยู่จริง
AU20: ลงชื่อ | AV20: ........................................................ | BJ20: ผู้รับการประเมิน
AV21: ="("&Data!C116&")" -> (นายชุติพล นิลพันธ์)
AU22: ตำแหน่ง | AV22: =Data!F117&Data!F118 -> นายช่างเขียนแบบปฎิบัติงาน
AU23: วันที่ | AV23: ........................................................

Sheet P6 (hidden)
E3: 4.2 ผลการประเมินของผู้ประเมิน
C5: รายการ | T5: คะแนนเต็ม | AB5: ผลการประเมิน | AK5: ระดับผลการประเมิน
T6: (ร้อยละ) | AB6: (ร้อยละ)
C7: 1 | F7: ผลสัมฤทธิ์ของงาน | T7: 70 | AB7: ='P3'!BK15 -> 54 | AL7: =IF($AB$11>=90,'P1'!BV7,'P1'!BV6) -> ¨ | AQ7: ดีเด่น | AY7: ตั้งแต่ร้อยละ 90 ขึ้นไป
AL8: =IF(AND($AB$11>=80,$AB$11<90),'P1'!BV7,'P1'!BV6) -> þ | AQ8: ดีมาก | AY8: ตั้งแต่ร้อยละ 80 แต่ไม่ถึงร้อยละ 90
C9: 2 | F9: การประเมินสมรรถนะ | T9: 30 | AB9: ='P4'!BK23 -> 28.4 | AL9: =IF(AND($AB$11>=70,$AB$11<80),'P1'!BV7,'P1'!BV6) -> ¨ | AQ9: ดี | AY9: ตั้งแต่ร้อยละ 70 แต่ไม่ถึงร้อยละ 80
AL10: =IF(AND($AB$11>=60,$AB$11<70),'P1'!BV7,'P1'!BV6) -> ¨ | AQ10: พอใจ | AY10: ตั้งแต่ร้อยละ 60 แต่ไม่ถึงร้อยละ 70
C11: รวม | T11: 100 | AB11: =SUM(AB7:AJ10) -> 82.4 | AL11: =IF($AB$11=0,'P1'!BV6,IF($AB$11<60,'P1'!BV7,'P1'!BV6)) -> ¨ | AQ11: ต้องปรับปรุง | AY11: ต่ำกว่าร้อยละ 60
AU14: ลงชื่อ | AV14: ........................................................ | BJ14: ผู้ประเมิน
AV15: ="("&Data!C123&")" -> (นายวิเชียร อรรถพร)
AU16: ตำแหน่ง | AV16: =Data!F124 -> ผู้อำนวยการกองช่าง
AU17: วันที่ | AV17: ........................................................
D19: ส่วนที่ 5 แผนพัฒนาการปฏิบัติราชการ
C21: ผลสัมฤทธิ์ของงานหรือสมรรถนะ | R21: วิธีการพัฒนา | AJ21: ช่วงเวลาและระยะเวลา | BB21: วิธีการวัดผลในการพัฒนา
C22: ที่เลือกพัฒนา | AJ22: การพัฒนา
C23: (ก) | R23: (ข) | AJ23: (ค) | BB23: (ง)

Sheet P7 (hidden)
D3: ส่วนที่ 6 การแจ้งและรับทราบผลการประเมิน
D5: ¨ | G5: ได้แจ้งผลการประเมินให้ทราบแล้ว | AA5: ¨ | AD5: ได้รับทราบผลการประเมินแล้ว | AW5: ¨ | AZ5: ได้แจ้งผลการประเมินแล้วเมื่อวันที่.....................
AZ6: แต่ผู้รับการประเมินไม่ยินยอมลงนามรับทราบ
AZ7: โดยมี....................................................เป็นพยาน
H9: ลงชื่อ | I9: ........................................................ | AE9: ลงชื่อ | AF9: ........................................................ | BB9: ลงชื่อ | BC9: ........................................................
I10: ="("&Data!C123&")" -> (นายวิเชียร อรรถพร) | AF10: ="("&Data!C116&")" -> (นายชุติพล นิลพันธ์) | BC10: (.....................................................)
H11: ตำแหน่ง | I11: =Data!F124 -> ผู้อำนวยการกองช่าง | AE11: ตำแหน่ง | AF11: =Data!F117&Data!F118 -> นายช่างเขียนแบบปฎิบัติงาน | BB11: ตำแหน่ง | BC11: ........................................................
I12: ผู้ประเมิน | AF12: ผู้รับการประเมิน | BC12: พยาน
H13: วันที่ | I13: ........................................................ | AE13: วันที่ | AF13: ........................................................ | BB13: วันที่ | BC13: ........................................................
D16: ส่วนที่ 7 ความเห็นของผู้บังคับบัญชาเหนือขึ้นไป (ถ้ามี)
D19: ¨ | G19: เห็นชอบกับผลคะแนนของผู้ประเมิน
D20: ¨ | G20: มีความเห็นแตกต่าง ดังนี้ | T20: 1 | V20: ผลสัมฤทธิ์ของงาน | AS20: ควรได้คะแนนร้อยละ..................... | AT20: เหตุผล................................................................................................
T21: 2 | V21: สมรรถนะ | AS21: ควรได้คะแนนร้อยละ..................... | AT21: เหตุผล................................................................................................
AS22: รวมคะแนนที่ควรได้ครั้งนี้ร้อยละ.....................
AU25: ลงชื่อ | AV25: ........................................................
AV26: (.....................................................)
AU27: ตำแหน่ง | AV27: ........................................................
AU28: วันที่ | AV28: ........................................................

Sheet P8 (hidden)
D3: ส่วนที่ 8 ความเห็นของคณะกรรมการกลั่นกรองการประเมินผลการปฏิบัติงานของข้าราชการหรือพนักงานส่วนท้องถิ่น
D6: ¨ | G6: เห็นชอบกับผลคะแนนของ | T6: ¨ | W6: ผู้ประเมิน ตามส่วนที่ 4 หรือ | AK6: ¨ | AN6: ผู้บังคับบัญชาเหนือขึ้นไป ตามส่วนที่ 7
D7: ¨ | G7: มีความเห็นแตกต่าง ดังนี้ | T7: 1 | V7: ผลสัมฤทธิ์ของงาน | AS7: ควรได้คะแนนร้อยละ..................... | AT7: เหตุผล................................................................................................
T8: 2 | V8: สมรรถนะ | AS8: ควรได้คะแนนร้อยละ..................... | AT8: เหตุผล................................................................................................
AS9: รวมคะแนนที่ควรได้ครั้งนี้ร้อยละ.....................
AU11: ลงชื่อ | AV11: ........................................................
AV12: ="("&Data!C127&")" -> (นางสุดาทิพย์ มโนวราวุฒิ)
AQ13: ตำแหน่ง | AR13: =IF(Data!C127>0,Data!F127,"........................................................") -> รองปลัดเทศบาล ปฏิบัติราชการแทนปลัดเทศบาล
AN14: ประธานคณะกรรมการกลั่นกรองการประเมินผลการปฏิบัติงาน ฯ
AU15: วันที่ | AV15: ........................................................
D18: ="ส่วนที่ 9 ผลการพิจารณาของนายก"&IF(Data!C130="องค์การบริหารส่วนตำบล",Data!C130,IF(Data!C130="องค์การบริหารส่วนจังหวัด",Data!C130,"นายกเทศมนตรี")) -> ส่วนที่ 9 ผลการพิจารณาของนายกนายกเทศมนตรี
D21: ¨ | G21: เห็นชอบตามความเห็นของคณะกรรมการกลั่นกรองการประเมินผลการปฏิบัติงานของข้าราชการหรือพนักงานส่วนท้องถิ่น
D22: ¨ | G22: มีความเห็นแตกต่าง ดังนี้ | T22: 1 | V22: ผลสัมฤทธิ์ของงาน | AS22: ควรได้คะแนนร้อยละ..................... | AT22: เหตุผล................................................................................................
T23: 2 | V23: สมรรถนะ | AS23: ควรได้คะแนนร้อยละ..................... | AT23: เหตุผล................................................................................................
AS24: รวมคะแนนที่ควรได้ครั้งนี้ร้อยละ.....................
AU26: ลงชื่อ | AV26: ........................................................
AV27: ="("&Data!C128&")" -> (นายจารึก เพ็ชรคง)
AQ28: ตำแหน่ง | AR28: =IF(Data!C128>0,Data!E128,"........................................................") -> ปลัดเทศบาล ปฏิบัติหน้าที่นายกเทศมนตรี
AU29: วันที่ | AV29: ........................................................

Sheet Page 1 (hidden)
B2: แบบประเมินผลการปฏิบัติงานของพนักงานส่วนท้องถิ่น
B3: รอบการประเมิน | C3: =IF(Data!C119=1,AH4,AH3) -> þ | D3: ="ครั้งที่ 1 1 ตุลาคม "&Data!C120-1&" ถึง 31 มีนาคม "&Data!C120 -> ครั้งที่ 1 1 ตุลาคม 2562 ถึง 31 มีนาคม 2563 | AH3: ¨
C4: =IF(Data!C119=2,AH4,AH3) -> ¨ | D4: ="ครั้งที่ 2 1 เมษายน "&Data!C120&" ถึง 30 กันยายน "&Data!C120 -> ครั้งที่ 2 1 เมษายน 2563 ถึง 30 กันยายน 2563 | AH4: þ
B5: ข้อมูลประวัติส่วนตัว
B6: ผู้รับการประเมิน
B7: ="ชื่อ – นามสกุล "&Data!C116 -> ชื่อ – นามสกุล นายชุติพล นิลพันธ์ | G7: ="ตำแหน่ง (ชื่อตำแหน่งในสายงาน) "&Data!F117 -> ตำแหน่ง (ชื่อตำแหน่งในสายงาน) นายช่างเขียนแบบ | AA7: ="ระดับตำแหน่ง "&Data!F118 -> ระดับตำแหน่ง ปฎิบัติงาน
B8: ="ประเภทตำแหน่ง "&Data!F116 -> ประเภทตำแหน่ง ทั่วไป | G8: ="ตำแหน่งเลขที่ "&Data!C118 -> ตำแหน่งเลขที่ 109876543212 | AA8: ="สังกัด "&Data!F119 -> สังกัด กองช่าง
B9: ผู้ประเมิน
B10: ="ชื่อ – นามสกุล "&Data!C123 -> ชื่อ – นามสกุล นายวิเชียร อรรถพร | G10: ="ตำแหน่ง (ชื่อตำแหน่งในการบริหารงาน) "&Data!F124 -> ตำแหน่ง (ชื่อตำแหน่งในการบริหารงาน) ผู้อำนวยการกองช่าง
B11: ส่วนที่ 1 ผลสัมฤทธิ์ของงาน (ไม่น้อยกว่าร้อยละ 70)
B12: โครงการ/งาน/กิจกรรม | C12: น้ำ หนัก | D12: เป้าหมาย (3) | G12: ผลการปฏิบัติงาน (7) | AA12: รวมคะแนนผลการปฏิบัติงาน | AB12: ผลสัมฤทธิ์ของงาน | AC12: เหตุผลที่ทำให้งานบรรลุ/ไม่บรรลุเป้าหมาย
D14: เชิงปริมาณ | E14: เชิงคุณภาพ | F14: เชิงประโยชน์ | G14: ปริมาณ | M14: คุณภาพ | S14: ประโยชน์ | AA14: (11) | AB14: (12)
G15: (8) | M15: (9) | S15: (10) | AA15: =(8)+(9) +(10) | AB15: =(2)x(11)
B16: (1) | C16: (2) | D16: (4) | E16: (5) | F16: (6) | G16: 0.5 | H16: 1 | I16: 1.5 | J16: 2 | K16: 2.5 | L16: 3 | M16: 0.5 | N16: 1 | O16: 1.5 | P16: 2 | Q16: 2.5 | R16: 3 | S16: 0.5 | T16: 1 | U16: 1.5 | V16: 2 | W16: 2.5 | X16: 3 | Y16: 3.5 | Z16: 4 | AB16: 10 | AC16: (13)
B17: 1. เขียนแบบ โครงการก่อสร้าง | C17: 20 | D17: จำนวน 5 โครงการ | E17: ถูกต้อง มีรายละเอียดครบถ้วน | F17: ใช้เป็นแบบก่อสร้าง | K17: x | Q17: x | Z17: x | AA17: =SUM(AE17:AG17) -> 9 | AB17: =($C17*$AA17)/10 -> 18 | AE17: =IF(G17="x",$G$16,IF(H17="x",$H$16,IF(I17="x",$I$16,IF(J17="x",$J$16,IF(K17="x",$K$16,IF(L17="x",$L$16,0)))))) -> 2.5 | AF17: =IF(M17="x",$M$16,IF(N17="x",$N$16,IF(O17="x",$O$16,IF(P17="x",$P$16,IF(Q17="x",$Q$16,IF(R17="x",$R$16,0)))))) -> 2.5 | AG17: =IF(S17="x",$S$16,IF(T17="x",$T$16,IF(U17="x",$U$16,IF(V17="x",$V$16,IF(W17="x",$W$16,IF(X17="x",$X$16,IF(Y17="x",$Y$16,IF(Z17="x",$Z$16,0)))))))) -> 4
B18: 2.ควบคุมงานก่อสร้าง | C18: 40 | D18: จำนวน 5 โครงการ | E18: ถูกต้อง เป็นไปตามแบบ | F18: มีความมั่นคงแข็งแรง ใช้งานได้ตามวัตถุประสงค์ | L18: x | R18: x | Z18: x | AA18: =SUM(AE18:AG18) -> 10 | AB18: =($C18*$AA18)/10 -> 40 | AE18: =IF(G18="x",$G$16,IF(H18="x",$H$16,IF(I18="x",$I$16,IF(J18="x",$J$16,IF(K18="x",$K$16,IF(L18="x",$L$16,0)))))) -> 3 | AF18: =IF(M18="x",$M$16,IF(N18="x",$N$16,IF(O18="x",$O$16,IF(P18="x",$P$16,IF(Q18="x",$Q$16,IF(R18="x",$R$16,0)))))) -> 3 | AG18: =IF(S18="x",$S$16,IF(T18="x",$T$16,IF(U18="x",$U$16,IF(V18="x",$V$16,IF(W18="x",$W$16,IF(X18="x",$X$16,IF(Y18="x",$Y$16,IF(Z18="x",$Z$16,0)))))))) -> 4
B19: 3.คำนวณราคากลางอิเล็กทรอนิกส์ | C19: 10 | D19: จำนวน 3 โครงการ | E19: ถูกต้องตามหลักเกณฑ์ราคากลาง | F19: มีราคากลางให้หน่วยงานใช้อ้างอิงในการประกวดราคาจ้าง | K19: x | Q19: x | Z19: x | AA19: 9 | AB19: 9 | AE19: 2.5 | AF19: 2.5 | AG19: 4
B20: ฯลฯ
B21: น้ำหนักรวม | C21: 70 | D21: คะแนนที่ได้ | AB21: =SUM(AB17:AB20) -> 67

Sheet Page 2 (hidden)
B2: -2-
B4: ส่วนที่ 2 พฤติกรรมการปฏิบัติราชการ (สมรรถนะ) (ร้อยละ 30) สำหรับตำแหน่งประเภททั่วไป และประเภทวิชาการ
B5: ตัวชี้วัดสมรรถนะ | C5: น้ำหนัก | D5: ระดับที่คาดหวัง/ต้องการ | E5: ระดับที่ประเมินได้ | F5: คะแนนที่ได้ | G5: ผลการประเมิน | H5: ระบุเหตุการณ์/พฤติกรรม
G6: (6) = (2) x (5) | L6: ระดับที่ประเมินได้
B7: (1) | C7: (2) | D7: (3) | E7: (4) | F7: (5) | G7: 5 | H7: (7) | L7: 0 | M7: 1 | N7: 2 | O7: 3 | P7: 4 | Q7: 5
B8: สมรรถนะหลัก (สำหรับทุกประเภท) | J8: ระดับความคาดหวัง | K8: 1 | L8: 0 | M8: 4 | N8: 5 | O8: 5 | P8: 5 | Q8: 5
B9: 1. การมุ่งผลสัมฤทธิ์ | C9: 4 | D9: 3 | E9: 4 | F9: =VLOOKUP(D9,$K$7:$Q$12,MATCH(E9,$K$7:$Q$7,0)) -> 5 | G9: =(C9*F9)/5 -> 4 | K9: 2 | L9: 0 | M9: 3 | N9: 4 | O9: 5 | P9: 5 | Q9: 5
B10: 2. การยึดมั่นในความถูกต้องและจริยธรรม | C10: 4 | D10: 3 | E10: 5 | F10: =VLOOKUP(D10,$K$7:$Q$12,MATCH(E10,$K$7:$Q$7,0)) -> 5 | G10: =(C10*F10)/5 -> 4 | K10: 3 | L10: 0 | M10: 2 | N10: 3 | O10: 4 | P10: 5 | Q10: 5
B11: 3. ความเข้าใจในองค์กรและระบบงาน | C11: 4 | D11: 3 | E11: 3 | F11: 4 | G11: 3.2 | K11: 4 | L11: 0 | M11: 1 | N11: 2 | O11: 3 | P11: 4 | Q11: 5
B12: 4. การบริการเป็นเลิศ | C12: 2 | D12: 3 | E12: 3 | F12: 4 | G12: 1.6 | K12: 5 | L12: 0 | M12: 0 | N12: 1 | O12: 2 | P12: 3 | Q12: 4
B13: 5 การทำงานเป็นทีม | C13: 4 | D13: 3 | E13: 4 | F13: 5 | G13: 4
B15: สมรรถนะประจำสายงานงาน (อย่างน้อย 3 สมรรถนะ)
B16: 1. การยึดมั่นในหลักเกณฑ์ | C16: 4 | D16: 2 | E16: 3 | F16: 5 | G16: 4
B17: 2. การสั่งสมความรู้และความเชี่ยวชาญในสายอาชีพ | C17: 4 | D17: 2 | E17: 3 | F17: 5 | G17: 4
B18: 3. ความละเอียดรอบคอบและความถูกต้องของงาน | C18: 4 | D18: 2 | E18: 2 | F18: 4 | G18: 3.2
B19: น้ำหนักรวม | C19: 30 | D19: คะแนนรวม | G19: =SUM(G8:G18) -> 28

Sheet Page 3 (hidden)
B2: -3-
B4: สรุปผลการประเมิน
B5: องค์ประกอบการประเมิน | D5: คะแนน (ร้อยละ) | E5: ผลการประเมิน (ร้อยละ) | F5: หมายเหตุ
B6: (1) | D6: (2) | E6: (3)
B7: 1. ผลสัมฤทธิ์ของงาน | D7: 70 | E7: ='Page 1'!AB21 -> 67
B8: 2. พฤติกรรมการปฏิบัติราชการ (สมรรถนะ) | D8: 30 | E8: =IF(Data!F116="ทั่วไป",'Page 2'!G19,IF(Data!F116="วิชาการ",'Page 2'!G19,'PageB 2'!G25)) -> 28
B9: คะแนนรวม | D9: 100 | E9: =SUM(E7:E8) -> 95
C11: ระดับผลการประเมิน
B12: =IF($E$9>=90,'Page 1'!AH4,'Page 1'!AH3) -> þ | C12: ดีเด่น | D12: (ร้อยละ 90 ขึ้นไป) | H12: Ö
B13: =IF(AND($E$9>=80,$E$9<90),'Page 1'!AH4,'Page 1'!AH3) -> ¨ | C13: ดีมาก | D13: (ร้อยละ 80 แต่ไม่ถึงร้อยละ 90)
B14: =IF(AND($E$9>=70,$E$9<80),'Page 1'!AH4,'Page 1'!AH3) -> ¨ | C14: ดี | D14: (ร้อยละ 70 แต่ไม่ถึงร้อยละ 80)
B15: =IF(AND($E$9>=60,$E$9<70),'Page 1'!AH4,'Page 1'!AH3) -> ¨ | C15: พอใช้ | D15: (ร้อยละ 60 แต่ไม่ถึงร้อยละ 70)
B16: =IF($E$9=0,'Page 1'!AH3,IF($E$9<60,'Page 1'!AH4,'Page 1'!AH3)) -> ¨ | C16: ต้องปรับปรุง | D16: (ต่ำกว่าร้อยละ 60)
B18: ส่วนที่ 3 แผนพัฒนาการปฏิบัติราชการรายบุคคล
B19: ผลสัมฤทธิ์ของงาน / | D19: วิธีการพัฒนา | E19: ช่วงเวลาที่ต้องการพัฒนา | F19: วิธีการวัดผลในการพัฒนา
B20: สมรรถนะที่เลือกพัฒนา
B21: (1) | D21: (2) | E21: (3) | F21: (4)

Sheet Page 4 (hidden)
C2: -4-
C4: ส่วนที่ 4 ข้อตกลงการปฏิบัติราชการ
C6: =" ชื่อ - นามสกุล (ของผู้ทำข้อตกลง) "&Data!C116&" ตำแหน่ง "&Data!F117&Data!F118&" "&I7 -> ชื่อ - นามสกุล (ของผู้ทำข้อตกลง) นายชุติพล นิลพันธ์ ตำแหน่ง นายช่างเขียนแบบปฎิบัติงาน ได้เลือกตัวชี้วัดผลสัมฤทธิ์ของงาน และพฤติกรรมการปฏิบัติราชการ (สมรรถนะ) เพื่อขอรับการประเมิน โดยร่วมกับผู้ประเมิน (ผู้รับข้อตกลง) ในการกำหนดน้ำหนักและเป้าหมายตัวชี้วัด รวมทั้งกำหนดน้ำหนักสมรรถนะหลัก และสมรรถนะประจำสายงานงานในแต่ละสมรรถนะ พร้อมลงชื่อรับทราบข้อตกลงการปฏิบัติราชการร่วมกันตั้งแต่เริ่มระยะการประเมิน | I6: ชื่อ-นามสกุล (ผู้ทำข้อตกลง)
C7: ลงชื่อ........................................................ผู้รับการประเมิน | E7: ลงชื่อ........................................................................ผู้ประเมิน | I7: ได้เลือกตัวชี้วัดผลสัมฤทธิ์ของงาน และพฤติกรรมการปฏิบัติราชการ (สมรรถนะ) เพื่อขอรับการประเมิน โดยร่วมกับผู้ประเมิน (ผู้รับข้อตกลง) ในการกำหนดน้ำหนักและเป้าหมายตัวชี้วัด รวมทั้งกำหนดน้ำหนักสมรรถนะหลัก และสมรรถนะประจำสายงานงานในแต่ละสมรรถนะ พร้อมลงชื่อรับทราบข้อตกลงการปฏิบัติราชการร่วมกันตั้งแต่เริ่มระยะการประเมิน
C8: =" ("&Data!C116&")" -> (นายชุติพล นิลพันธ์) | E8: =" ("&Data!C123&")" -> (นายวิเชียร อรรถพร)
C9: ="ตำแหน่ง "&Data!F117&Data!F118 -> ตำแหน่ง นายช่างเขียนแบบปฎิบัติงาน | E9: =" ตำแหน่ง "&Data!F124 -> ตำแหน่ง ผู้อำนวยการกองช่าง
C10: วันที่............................................................... | E10: วันที่..........................................................................
C13: ส่วนที่ 5 การรับทราบผลการประเมิน
B15: ð | C15: ได้รับทราบผลการประเมินและแผนพัฒนาการ | D15: ð | E15: ได้แจ้งผลการประเมินและผู้รับการประเมิน | F15: ð | G15: ได้แจ้งผลการประเมินเมื่อวันที่.............................
C16: ปฏิบัติราชการรายบุคคลแล้ว | E16: ได้ลงนามรับทราบแล้ว | G16: แต่ผู้รับการประเมินไม่ลงนามรับทราบ
G17: โดยมี............................................................... เป็นพยาน
B18: ลงชื่อ..........................................................ผู้รับการประเมิน | D18: ลงชื่อ............................................................ผู้ประเมิน | G18: ลงชื่อ ..............................................................พยาน
C19: =" ("&Data!C116&")" -> (นายชุติพล นิลพันธ์) | E19: =" ("&Data!C123&")" -> (นายวิเชียร อรรถพร)
C20: ="ตำแหน่ง "&Data!F117&Data!F118 -> ตำแหน่ง นายช่างเขียนแบบปฎิบัติงาน | E20: ="ตำแหน่ง "&Data!F124 -> ตำแหน่ง ผู้อำนวยการกองช่าง | G20: ตำแหน่ง.......................................................................
C21: วันที่ ................................................................. | E21: วันที่ ................................................................. | G21: วันที่ ...............................................................................

Sheet Page 5 (hidden)
B3: -5-
B4: ส่วนที่ 6 ความเห็นของผู้บังคับบัญชาเหนือขึ้นไป (ถ้ามี)
B5: ผู้บังคับบัญชาเหนือขึ้นไป | C5: ผู้บังคับบัญชาเหนือขึ้นไปอีกชั้นหนึ่ง
B6: ¨ เห็นด้วยกับผลการประเมิน | C6: ¨ เห็นด้วยกับผลการประเมิน
B7: ¨ มีความเห็นต่าง ดังนี้ ....................................................................................... | C7: ¨ มีความเห็นต่าง ดังนี้ .................................................................................................
B8: ………………………………………………………………………………………………………………………………………………………………………………………………………………………………………………………………...………… | C8: ………………………………………………………………………………………………………………………………………………………………………………………………………………………………………………………………...…………
B10: ลงชื่อ.................................................................. | C10: ลงชื่อ.............................................................................
B11: (.................................................................) | C11: (……………………….………………..……………………….)
B12: ตำแหน่ง ............................................................... | C12: ตำแหน่ง …………………………………………………………
B13: วันที่ ............................................................... | C13: วันที่ ............................................................................
B15: ส่วนที่ 7 มติคณะกรรมการกลั่นกรองการประเมินผลการปฏิบัติงาน | C15: ส่วนที่ 8 ความเห็นของนายกองค์กรปกครองส่วนท้องถิ่น
B16: ¨ เห็นชอบตามผลคะแนนที่ผู้ประเมินเสนอ | C16: ¨ เห็นด้วยตามมติคณะกรรมการกลั่นกรองการประเมินผลการปฏิบัติงาน
B17: ¨ มีความเห็นต่าง ดังนี้ ....................................................................................... | C17: ¨ มีความเห็นต่าง ดังนี้ .......................................................................................
B18: ............................................................................................................................. | C18: .............................................................................................................................
B19: ............................................................................................................................. | C19: .............................................................................................................................
B20: คะแนนที่ควรได้รับ...................คะแนน | C20: คะแนนที่ควรได้รับ...................คะแนน
B23: ลงชื่อ.................................................................... | C23: ลงชื่อ................................................................
B24: (..........................................................) | C24: =" ("&Data!C128&")" -> (นายจารึก เพ็ชรคง)
B25: ตำแหน่ง ประธานคณะกรรมการกลั่นกรองฯ | C25: =" ตำแหน่ง "&IF(Data!E128="นายก ฯ",VLOOKUP(Data!C130,Data!R142:S146,2,FALSE)&Data!F130,Data!E128) -> ตำแหน่ง ปลัดเทศบาล ปฏิบัติหน้าที่นายกเทศมนตรี
B26: วันที่ ............................................................ | C26: =" "&IF(Data!E128="นายก ฯ","วันที่ ........................................................",VLOOKUP(Data!C130,Data!R142:S146,2,0)&Data!F130) -> นายกเทศมนตรีตำบลวัดประดู่
C27: =" "&IF(Data!E128="ปลัดเทศบาล ปฏิบัติหน้าที่","วันที่ ........................................................","") -> 

Sheet PageB 1 (hidden)
B2: แบบประเมินผลการปฏิบัติงานของพนักงานส่วนท้องถิ่น
B3: รอบการประเมิน | C3: =IF(Data!C119=1,AH4,AH3) -> þ | D3: ="ครั้งที่ 1 1 ตุลาคม "&Data!C120-1&" ถึง 31 มีนาคม "&Data!C120 -> ครั้งที่ 1 1 ตุลาคม 2562 ถึง 31 มีนาคม 2563 | AH3: ¨
C4: =IF(Data!C119=2,AH4,AH3) -> ¨ | D4: ="ครั้งที่ 2 1 เมษายน "&Data!C120&" ถึง 30 กันยายน "&Data!C120 -> ครั้งที่ 2 1 เมษายน 2563 ถึง 30 กันยายน 2563 | AH4: þ
B5: ข้อมูลประวัติส่วนตัว
B6: ผู้รับการประเมิน
B7: ="ชื่อ – นามสกุล "&Data!C116 -> ชื่อ – นามสกุล นายชุติพล นิลพันธ์ | G7: ="ตำแหน่ง (ชื่อตำแหน่งในสายงาน) "&Data!F117 -> ตำแหน่ง (ชื่อตำแหน่งในสายงาน) นายช่างเขียนแบบ | AA7: ="ระดับตำแหน่ง "&Data!F118 -> ระดับตำแหน่ง ปฎิบัติงาน
B8: ="ประเภทตำแหน่ง "&Data!F116 -> ประเภทตำแหน่ง ทั่วไป | G8: ="ตำแหน่งเลขที่ "&Data!C118 -> ตำแหน่งเลขที่ 109876543212 | AA8: ="สังกัด "&Data!F119 -> สังกัด กองช่าง
B9: ผู้ประเมิน
B10: ="ชื่อ – นามสกุล "&Data!C123 -> ชื่อ – นามสกุล นายวิเชียร อรรถพร | G10: ="ตำแหน่ง (ชื่อตำแหน่งในการบริหารงาน) "&Data!F124 -> ตำแหน่ง (ชื่อตำแหน่งในการบริหารงาน) ผู้อำนวยการกองช่าง
B11: ส่วนที่ 1 ผลสัมฤทธิ์ของงาน (ไม่น้อยกว่าร้อยละ 70)
B12: โครงการ/งาน/กิจกรรม | C12: น้ำ หนัก | D12: เป้าหมาย (3) | G12: ผลการปฏิบัติงาน (7) | AA12: รวมคะแนนผลการปฏิบัติงาน | AB12: ผลสัมฤทธิ์ของงาน | AC12: เหตุผลที่ทำให้งานบรรลุ/ไม่บรรลุเป้าหมาย
D14: เชิงปริมาณ | E14: เชิงคุณภาพ | F14: เชิงประโยชน์ | G14: ปริมาณ | M14: คุณภาพ | S14: ประโยชน์ | AA14: (11) | AB14: (12)
G15: (8) | M15: (9) | S15: (10) | AA15: =(8)+(9) +(10) | AB15: =(2)x(11)
B16: (1) | C16: (2) | D16: (4) | E16: (5) | F16: (6) | G16: 0.5 | H16: 1 | I16: 1.5 | J16: 2 | K16: 2.5 | L16: 3 | M16: 0.5 | N16: 1 | O16: 1.5 | P16: 2 | Q16: 2.5 | R16: 3 | S16: 0.5 | T16: 1 | U16: 1.5 | V16: 2 | W16: 2.5 | X16: 3 | Y16: 3.5 | Z16: 4 | AB16: 10 | AC16: (13)
B17: 1. เขียนแบบ โครงการก่อสร้าง | C17: 30 | D17: จำนวน 10 โครงการ | E17: ถูกต้อง มีรายละเอียดครบถ้วน | F17: ใช้เป็นแบบก่อสร้าง | K17: x | Q17: x | Y17: x | AA17: =SUM(AE17:AG17) -> 8.5 | AB17: =($C17*$AA17)/10 -> 25.5 | AE17: =IF(G17="x",$G$16,IF(H17="x",$H$16,IF(I17="x",$I$16,IF(J17="x",$J$16,IF(K17="x",$K$16,IF(L17="x",$L$16,0)))))) -> 2.5 | AF17: =IF(M17="x",$M$16,IF(N17="x",$N$16,IF(O17="x",$O$16,IF(P17="x",$P$16,IF(Q17="x",$Q$16,IF(R17="x",$R$16,0)))))) -> 2.5 | AG17: =IF(S17="x",$S$16,IF(T17="x",$T$16,IF(U17="x",$U$16,IF(V17="x",$V$16,IF(W17="x",$W$16,IF(X17="x",$X$16,IF(Y17="x",$Y$16,IF(Z17="x",$Z$16,0)))))))) -> 3.5
B18: 2.ควบคุมงานก่อสร้าง | C18: 10 | D18: จำนวน 5 โครงการ | E18: ถูกต้อง เป็นไปตามแบบ | F18: มีความมั่นคงแข็งแรง ใช้งานได้ตามวัตถุประสงค์ | K18: x | R18: x | Y18: x | AA18: =SUM(AE18:AG18) -> 9 | AB18: =($C18*$AA18)/10 -> 9 | AE18: =IF(G18="x",$G$16,IF(H18="x",$H$16,IF(I18="x",$I$16,IF(J18="x",$J$16,IF(K18="x",$K$16,IF(L18="x",$L$16,0)))))) -> 2.5 | AF18: =IF(M18="x",$M$16,IF(N18="x",$N$16,IF(O18="x",$O$16,IF(P18="x",$P$16,IF(Q18="x",$Q$16,IF(R18="x",$R$16,0)))))) -> 3 | AG18: =IF(S18="x",$S$16,IF(T18="x",$T$16,IF(U18="x",$U$16,IF(V18="x",$V$16,IF(W18="x",$W$16,IF(X18="x",$X$16,IF(Y18="x",$Y$16,IF(Z18="x",$Z$16,0)))))))) -> 3.5
B19: 3.ปรับปรุงโปรแกรมจัดทำรายงานการควบคุมงานก่อสร้าง | C19: 30 | D19: 0.9 | E19: ถูกต้องตามระเบียบและหนังสือสั่งการที่เกี่ยวข้อง | F19: เพิ่มความสะดวก ในการค้นหาและอ้างอิงกฎหมาย | L19: x | R19: x | Z19: x | AA19: 10 | AB19: 30 | AE19: 3 | AF19: 3 | AG19: 4
B20: ฯลฯ
B21: น้ำหนักรวม | C21: 70 | D21: คะแนนที่ได้ | AB21: =SUM(AB17:AB20) -> 64.5

Sheet PageB 2 (hidden)
B2: -2-
B4: ส่วนที่ 2 พฤติกรรมการปฏิบัติราชการ (สมรรถนะ) (ร้อยละ 30) สำหรับตำแหน่งประเภทอำนวยการ และประเภทบริหาร
B5: ตัวชี้วัดสมรรถนะ | C5: น้ำหนัก | D5: ระดับที่คาดหวัง/ต้องการ | E5: ระดับที่ประเมินได้ | F5: คะแนนที่ได้ | G5: ผลการประเมิน | H5: ระบุเหตุการณ์/พฤติกรรม
G6: (6) = (2) x (5) | L6: ระดับที่ประเมินได้
B7: (1) | C7: (2) | D7: (3) | E7: (4) | F7: (5) | G7: 5 | H7: (7) | L7: 0 | M7: 1 | N7: 2 | O7: 3 | P7: 4 | Q7: 5
B8: สมรรถนะหลัก (สำหรับทุกประเภท) | J8: ระดับความคาดหวัง | K8: 1 | L8: 0 | M8: 4 | N8: 5 | O8: 5 | P8: 5 | Q8: 5
B9: 1. การมุ่งผลสัมฤทธิ์ | C9: 2 | D9: 1 | E9: 2 | F9: =VLOOKUP(D9,$K$7:$Q$12,MATCH(E9,$K$7:$Q$7,0)) -> 5 | G9: =(C9*F9)/5 -> 2 | K9: 2 | L9: 0 | M9: 3 | N9: 4 | O9: 5 | P9: 5 | Q9: 5
B10: 2. การยึดมั่นในความถูกต้องและจริยธรรม | C10: 2 | D10: 1 | E10: 3 | F10: =VLOOKUP(D10,$K$7:$Q$12,MATCH(E10,$K$7:$Q$7,0)) -> 5 | G10: =(C10*F10)/5 -> 2 | K10: 3 | L10: 0 | M10: 2 | N10: 3 | O10: 4 | P10: 5 | Q10: 5
B11: 3. ความเข้าใจในองค์กรและระบบงาน | C11: 2 | D11: 1 | E11: 2 | F11: 5 | G11: 2 | K11: 4 | L11: 0 | M11: 1 | N11: 2 | O11: 3 | P11: 4 | Q11: 5
B12: 4. การบริการเป็นเลิศ | C12: 2 | D12: 1 | E12: 3 | F12: 5 | G12: 2 | K12: 5 | L12: 0 | M12: 0 | N12: 1 | O12: 2 | P12: 3 | Q12: 4
B13: 5 การทำงานเป็นทีม | C13: 2 | D13: 1 | E13: 3 | F13: 5 | G13: 2
B14: สมรรถนะผู้บริหาร
B15: 1.การเป็นผู้นำในการเปลี่ยนแปลง | C15: 2 | D15: 1 | E15: 3 | F15: 5 | G15: 2
B16: 2.ความสามารถในการเป็นผู้นำ | C16: 3 | D16: 1 | E16: 2 | F16: 5 | G16: 3
B17: 3.ความสามารถในการพัฒนาคน | C17: 3 | D17: 1 | E17: 2 | F17: 5 | G17: 3
B18: 4.การคิดเชิงกลยุทธ์ | C18: 2 | D18: 1 | E18: 3 | F18: 5 | G18: 2
B20: สมรรถนะประจำสายงานงาน (อย่างน้อย 3 สมรรถนะ)
B21: 1. แก้ไขปัญหาและดำเนินการเชิงรุก | C21: 2 | D21: 2 | E21: 2 | F21: 4 | G21: 1.6
B22: 2. การวางแผนและการจัดการ | C22: 2 | D22: 2 | E22: 4 | F22: 5 | G22: 2
B23: 3. การสร้างให้เกิดการมีส่วนร่วมทุกภาคส่วน | C23: 3 | D23: 2 | E23: 3 | F23: 5 | G23: 3
B24: 4. สร้างสรรค์เพื่อประโยชน์ของท้องถิ่น | C24: 3 | D24: 2 | E24: 2 | F24: 4 | G24: 2.4
B25: น้ำหนักรวม | C25: 30 | D25: คะแนนรวม | G25: =SUM(G8:G24) -> 29

Sheet PageB 3 (hidden)
B2: -3-
B4: สรุปผลการประเมิน
B5: องค์ประกอบการประเมิน | D5: คะแนน (ร้อยละ) | E5: ผลการประเมิน (ร้อยละ) | F5: หมายเหตุ
B6: (1) | D6: (2) | E6: (3)
B7: 1. ผลสัมฤทธิ์ของงาน | D7: 70 | E7: ='Page 1'!AB21 -> 67
B8: 2. พฤติกรรมการปฏิบัติราชการ (สมรรถนะ) | D8: 30 | E8: =IF(Data!F116="ทั่วไป",'Page 2'!G19,IF(Data!F116="วิชาการ",'Page 2'!G19,'PageB 2'!G25)) -> 28
B9: คะแนนรวม | D9: 100 | E9: =SUM(E7:E8) -> 95
C11: ระดับผลการประเมิน
B12: =IF($E$9>=90,'Page 1'!AH4,'Page 1'!AH3) -> þ | C12: ดีเด่น | D12: (ร้อยละ 90 ขึ้นไป) | H12: Ö
B13: =IF(AND($E$9>=80,$E$9<90),'Page 1'!AH4,'Page 1'!AH3) -> ¨ | C13: ดีมาก | D13: (ร้อยละ 80 แต่ไม่ถึงร้อยละ 90)
B14: =IF(AND($E$9>=70,$E$9<80),'Page 1'!AH4,'Page 1'!AH3) -> ¨ | C14: ดี | D14: (ร้อยละ 70 แต่ไม่ถึงร้อยละ 80)
B15: =IF(AND($E$9>=60,$E$9<70),'Page 1'!AH4,'Page 1'!AH3) -> ¨ | C15: พอใช้ | D15: (ร้อยละ 60 แต่ไม่ถึงร้อยละ 70)
B16: =IF($E$9=0,'Page 1'!AH3,IF($E$9<60,'Page 1'!AH4,'Page 1'!AH3)) -> ¨ | C16: ต้องปรับปรุง | D16: (ต่ำกว่าร้อยละ 60)
B18: ส่วนที่ 3 แผนพัฒนาการปฏิบัติราชการรายบุคคล
B19: ผลสัมฤทธิ์ของงาน / | D19: วิธีการพัฒนา | E19: ช่วงเวลาที่ต้องการพัฒนา | F19: วิธีการวัดผลในการพัฒนา
B20: สมรรถนะที่เลือกพัฒนา
B21: (1) | D21: (2) | E21: (3) | F21: (4)

Sheet PageB 4 (hidden)
C2: -4-
C4: ส่วนที่ 4 ข้อตกลงการปฏิบัติราชการ
C6: =" ชื่อ - นามสกุล (ของผู้ทำข้อตกลง) "&Data!C116&" ตำแหน่ง "&Data!F117&Data!F118&" "&I7 -> ชื่อ - นามสกุล (ของผู้ทำข้อตกลง) นายชุติพล นิลพันธ์ ตำแหน่ง นายช่างเขียนแบบปฎิบัติงาน ได้เลือกตัวชี้วัดผลสัมฤทธิ์ของงาน และพฤติกรรมการปฏิบัติราชการ (สมรรถนะ) เพื่อขอรับการประเมิน โดยร่วมกับผู้ประเมิน (ผู้รับข้อตกลง) ในการกำหนดน้ำหนักและเป้าหมายตัวชี้วัด รวมทั้งกำหนดน้ำหนักสมรรถนะหลัก และสมรรถนะประจำสายงานงานในแต่ละสมรรถนะ พร้อมลงชื่อรับทราบข้อตกลงการปฏิบัติราชการร่วมกันตั้งแต่เริ่มระยะการประเมิน | I6: ชื่อ-นามสกุล (ผู้ทำข้อตกลง)
C7: ลงชื่อ........................................................ผู้รับการประเมิน | E7: ลงชื่อ........................................................................ผู้ประเมิน | I7: ได้เลือกตัวชี้วัดผลสัมฤทธิ์ของงาน และพฤติกรรมการปฏิบัติราชการ (สมรรถนะ) เพื่อขอรับการประเมิน โดยร่วมกับผู้ประเมิน (ผู้รับข้อตกลง) ในการกำหนดน้ำหนักและเป้าหมายตัวชี้วัด รวมทั้งกำหนดน้ำหนักสมรรถนะหลัก และสมรรถนะประจำสายงานงานในแต่ละสมรรถนะ พร้อมลงชื่อรับทราบข้อตกลงการปฏิบัติราชการร่วมกันตั้งแต่เริ่มระยะการประเมิน
C8: =" ("&Data!C116&")" -> (นายชุติพล นิลพันธ์) | E8: =" ("&Data!C123&")" -> (นายวิเชียร อรรถพร)
C9: ="ตำแหน่ง "&Data!F117&Data!F118 -> ตำแหน่ง นายช่างเขียนแบบปฎิบัติงาน | E9: =" ตำแหน่ง "&Data!F124 -> ตำแหน่ง ผู้อำนวยการกองช่าง
C10: วันที่............................................................... | E10: วันที่..........................................................................
C13: ส่วนที่ 5 การรับทราบผลการประเมิน
B15: ð | C15: ได้รับทราบผลการประเมินและแผนพัฒนาการ | D15: ð | E15: ได้แจ้งผลการประเมินและผู้รับการประเมิน | F15: ð | G15: ได้แจ้งผลการประเมินเมื่อวันที่.............................
C16: ปฏิบัติราชการรายบุคคลแล้ว | E16: ได้ลงนามรับทราบแล้ว | G16: แต่ผู้รับการประเมินไม่ลงนามรับทราบ
G17: โดยมี............................................................... เป็นพยาน
B18: ลงชื่อ..........................................................ผู้รับการประเมิน | D18: ลงชื่อ............................................................ผู้ประเมิน | G18: ลงชื่อ ..............................................................พยาน
C19: =" ("&Data!C116&")" -> (นายชุติพล นิลพันธ์) | E19: =" ("&Data!C123&")" -> (นายวิเชียร อรรถพร)
C20: ="ตำแหน่ง "&Data!F117&Data!F118 -> ตำแหน่ง นายช่างเขียนแบบปฎิบัติงาน | E20: ="ตำแหน่ง "&Data!F124 -> ตำแหน่ง ผู้อำนวยการกองช่าง | G20: ตำแหน่ง.......................................................................
C21: วันที่ ................................................................. | E21: วันที่ ................................................................. | G21: วันที่ ...............................................................................

Sheet PageB 5 (hidden)
B3: -5-
B4: ส่วนที่ 6 ความเห็นของผู้บังคับบัญชาเหนือขึ้นไป (ถ้ามี)
B5: ผู้บังคับบัญชาเหนือขึ้นไป | C5: ผู้บังคับบัญชาเหนือขึ้นไปอีกชั้นหนึ่ง
B6: ¨ เห็นด้วยกับผลการประเมิน | C6: ¨ เห็นด้วยกับผลการประเมิน
B7: ¨ มีความเห็นต่าง ดังนี้ ....................................................................................... | C7: ¨ มีความเห็นต่าง ดังนี้ .................................................................................................
B8: ………………………………………………………………………………………………………………………………………………………………………………………………………………………………………………………………...………… | C8: ………………………………………………………………………………………………………………………………………………………………………………………………………………………………………………………………...…………
B10: ลงชื่อ.................................................................. | C10: ลงชื่อ.............................................................................
B11: (.................................................................) | C11: (……………………….………………..……………………….)
B12: ตำแหน่ง ............................................................... | C12: ตำแหน่ง …………………………………………………………
B13: วันที่ ............................................................... | C13: วันที่ ............................................................................
B15: ส่วนที่ 7 มติคณะกรรมการกลั่นกรองการประเมินผลการปฏิบัติงาน | C15: ส่วนที่ 8 ความเห็นของนายกองค์กรปกครองส่วนท้องถิ่น
B16: ¨ เห็นชอบตามผลคะแนนที่ผู้ประเมินเสนอ | C16: ¨ เห็นด้วยตามมติคณะกรรมการกลั่นกรองการประเมินผลการปฏิบัติงาน
B17: ¨ มีความเห็นต่าง ดังนี้ ....................................................................................... | C17: ¨ มีความเห็นต่าง ดังนี้ .......................................................................................
B18: ............................................................................................................................. | C18: .............................................................................................................................
B19: ............................................................................................................................. | C19: .............................................................................................................................
B20: คะแนนที่ควรได้รับ...................คะแนน | C20: คะแนนที่ควรได้รับ...................คะแนน
B23: ลงชื่อ.................................................................... | C23: ลงชื่อ................................................................
B24: (..........................................................) | C24: =" ("&Data!C128&")" -> (นายจารึก เพ็ชรคง)
B25: ตำแหน่ง ประธานคณะกรรมการกลั่นกรองฯ | C25: =" ตำแหน่ง "&IF(Data!E128="นายก ฯ",VLOOKUP(Data!C130,Data!R142:S146,2,FALSE)&Data!F130,Data!E128) -> ตำแหน่ง ปลัดเทศบาล ปฏิบัติหน้าที่นายกเทศมนตรี
B26: วันที่ ............................................................ | C26: =" "&IF(Data!E128="นายก ฯ","วันที่ ........................................................",VLOOKUP(Data!C130,Data!R142:S146,2,0)&Data!F130) -> นายกเทศมนตรีตำบลวัดประดู่
C27: =" "&IF(Data!E128="ปลัดเทศบาล ปฏิบัติหน้าที่","วันที่ ........................................................","") -> 
